bitfinex/quotes_ETHUSD_20241030
["timestamp","ask_amount","ask_price","bid_price","bid_amount"]
[1730308486040,3.7279,2682.5,2682.3,0.04080595]
[1730308486243,3.7279,2682.5,2682.2,0.81]
[1730308486455,3.7279,2682.5,2682.3,0.04080595]
[1730308486651,3.7279,2682.5,2682.2,0.81]
[1730308486859,7.45566,2682.6,2682.3,0.04080435]
[1730308487072,7.45566,2682.6,2682.2,0.81]
[1730308487239,3.72788,2682.5,2682.3,0.04080435]
[1730308487443,3.72788,2682.5,2682.2,0.81]
[1730308487646,3.72788,2682.5,2682.3,0.04080435]
[1730308487861,3.72772,2682.6,2682.2,0.81]
[1730308488169,3.72772,2682.6,2682.3,0.04080435]
[1730308488170,3.72789,2682.5,2682.3,0.04080435]
[1730308488542,3.72789,2682.5,2682.2,0.81]
[1730308488763,3.72786,2682.5,2682.4,0.04067028]
[1730308488963,3.72786,2682.5,2682.3,0.04074202]
[1730308489176,3.72786,2682.5,2682.4,0.04067028]
[1730308489533,3.72786,2682.5,2682.2,0.81]
[1730308489738,3.72786,2682.5,2682.4,0.04067028]
[1730308489972,3.72786,2682.5,2682.3,0.04074202]
[1730308490138,3.72786,2682.5,2682.4,0.04067028]
[1730308490335,3.7277,2682.7,2682.4,0.04067028]
[1730308490557,3.7277,2682.7,2682.3,2.15225449]
[1730308490770,3.7277,2682.7,2682.5,0.04059535]
[1730308490975,4.53252,2682.8,2682.4,0.04066708]
[1730308491185,3.72774,2682.6,2682.3,0.55]
[1730308491353,3.72774,2682.6,2682.2,0.81]
[1730308491555,7.45618,2682.4,2682.2,0.81]
[1730308491872,3.72825,2682.3,2681.9,0.55]
[1730308492206,3.72825,2682.3,2681.9,2.15225449]
[1730308492540,3.72825,2682.3,2681.9,2.52535449]
[1730308493037,3.72868,2682.0,2681.8,0.3731]
[1730308493243,7.45734,2682.0,2681.8,0.3731]
[1730308493478,3.72866,2682.0,2681.8,0.3731]
[1730308493677,3.72844,2682.1,2681.8,0.3731]
[1730308494037,3.72844,2682.1,2681.7,0.3731]
[1730308494577,3.72846,2682.1,2681.8,1.97535449]
[1730308494781,4.53992,2682.4,2681.9,0.7663]
[1730308494945,3.72815,2682.3,2681.9,4.49493]
[1730308496171,3.72815,2682.3,2681.9,0.7663]
[1730308496477,3.72834,2682.2,2681.9,0.7663]
[1730308496683,3.72851,2682.1,2681.8,0.3731]
[1730308497585,3.7285,2682.1,2681.8,0.3731]
[1730308497787,3.72856,2682.0,2681.9,0.04102424]
[1730308499162,3.72844,2682.1,2681.9,0.04102424]
[1730308499361,3.72856,2682.0,2681.9,0.04102424]
[1730308500290,3.72856,2682.0,2681.9,0.0411137]
[1730308500477,4.180316,2682.0,2681.5,4.51729]
[1730308500782,3.7287,2681.9,2681.6,0.04132902]
[1730308501162,3.72856,2682.0,2681.6,3.77041902]
[1730308501851,4.51728,2682.2,2681.6,3.77041902]
[1730308502055,3.72845,2682.1,2681.6,3.77035902]
[1730308502955,4.51728,2682.2,2681.6,3.77035902]
[1730308503156,3.72856,2682.0,2681.6,3.77035902]
[1730308503370,4.51728,2682.2,2681.6,3.77035902]
[1730308503577,3.72843,2682.1,2681.6,3.77035902]
[1730308503894,3.72828,2682.2,2681.7,3.72891]
[1730308504101,3.72791,2682.5,2682.1,0.7546]
[1730308504252,3.72811,2682.4,2682.2,0.04090643]
[1730308505060,3.72795,2682.5,2682.2,0.04090643]
[1730308505270,7.45593,2682.5,2682.2,0.04090643]
[1730308505470,3.72795,2682.5,2682.2,0.04090643]
[1730308506373,3.72766,2682.7,2682.3,0.7838]
[1730308506558,3.72796,2682.5,2682.3,0.7838]
[1730308507080,3.72795,2682.5,2682.4,0.04071181]
[1730308507284,4.554699,2682.5,2682.0,0.7559]
[1730308507591,3.72835,2682.2,2682.1,0.04092705]
[1730308508085,3.72856,2682.0,2681.7,0.788]
[1730308508248,3.72842,2682.1,2681.7,0.788]
[1730308509785,3.72835,2682.2,2681.7,0.788]
[1730308510288,3.72811,2682.4,2682.0,0.804]
[1730308510462,3.72793,2682.5,2682.1,3.72833]
[1730308510655,3.72793,2682.5,2682.0,4.53247]
[1730308510854,3.72766,2682.7,2682.0,1.1771]
[1730308511510,3.7275,2682.8,2682.4,0.8238]
[1730308511998,3.72759,2682.7,2682.4,0.8238]
[1730308512605,3.72715,2683.1,2682.5,4.10088]
[1730308512805,3.72715,2683.1,2682.5,4.21608397]
[1730308512987,3.72715,2683.1,2682.7,3.72758]
[1730308513298,3.72715,2683.1,2682.8,0.04039936]
[1730308513498,3.72715,2683.1,2682.7,3.72758]
[1730308513705,0.01,2683.9,2682.7,3.72758]
[1730308513706,3.72658,2683.5,2682.9,3.7273]
[1730308513875,3.72683,2683.3,2683.0,0.8575192]
[1730308515202,7.45371,2683.3,2683.0,0.8575192]
[1730308515389,3.72683,2683.3,2683.0,0.8575192]
[1730308515589,7.45367,2683.3,2683.0,0.8575192]
[1730308515792,3.72683,2683.3,2683.0,0.8575192]
[1730308515965,3.7269,2683.2,2683.0,0.8575192]
[1730308516162,3.7269,2683.2,2683.0,0.6975192]
[1730308516506,3.72683,2683.3,2683.0,0.6975192]
[1730308516805,3.72689,2683.2,2683.0,0.0402192]
[1730308517305,3.72711,2683.1,2682.8,0.55]
[1730308517596,3.72711,2683.1,2682.7,0.55]
[1730308518173,3.7267,2683.4,2682.8,0.55]
[1730308518378,7.45398,2683.2,2682.8,0.55]
[1730308518577,3.72698,2683.2,2682.8,0.55]
[1730308519166,3.72698,2683.2,2682.9,0.7672]
[1730308519665,3.72696,2683.2,2682.9,0.7672]
[1730308520602,3.72725,2683.0,2682.7,0.7672]
[1730308520807,4.099586,2683.2,2682.4,0.8016]
[1730308520966,3.72759,2682.7,2682.4,0.8016]
[1730308521372,0.7776,2683.1,2682.4,0.8016]
[1730308521599,3.72803,2682.4,2682.1,0.8016]
[1730308522093,3.72815,2682.3,2682.1,0.8016]
[1730308522292,3.7282,2682.3,2682.1,0.8016]
[1730308522779,3.72803,2682.4,2682.1,0.8016]
[1730308523367,7.45617,2682.4,2682.1,0.8016]
[1730308523591,3.72803,2682.4,2682.1,0.8016]
[1730308523792,3.7282,2682.3,2681.8,0.38766544]
[1730308523963,3.7282,2682.3,2681.9,0.8197]
[1730308524964,3.72797,2682.5,2681.9,4.62288792]
[1730308525170,3.72797,2682.5,2682.1,3.72841]
[1730308525466,3.72797,2682.5,2681.9,4.54832]
[1730308525681,3.72795,2682.5,2682.0,3.72854]
[1730308525872,3.728,2682.4,2682.0,3.72854]
[1730308526296,3.72792,2682.5,2682.0,3.72854]
[1730308526503,3.72758,2682.7,2682.0,3.72854]
[1730308526811,3.72793,2682.5,2682.0,3.72854]
[1730308527002,3.72801,2682.4,2682.0,3.72854]
[1730308527815,3.72801,2682.4,2682.1,0.04074179]
[1730308529914,3.72818,2682.3,2682.1,0.04074179]
[1730308530213,3.72818,2682.3,2681.9,4.54832]
[1730308530374,3.72828,2682.2,2681.9,0.8197]
[1730308531474,3.72849,2682.1,2681.8,0.38766544]
[1730308531677,0.372849,2682.1,2681.8,0.38766544]
[1730308531996,3.72835,2682.2,2681.8,4.11649544]
[1730308532172,3.72829,2682.2,2681.8,4.11649544]
[1730308532789,3.72815,2682.3,2681.8,4.11649544]
[1730308533008,7.45619,2682.4,2681.9,3.72863]
[1730308533188,3.72807,2682.4,2681.8,4.11649544]
[1730308533393,3.72788,2682.5,2682.1,0.8076]
[1730308533599,4.182263,2682.5,2682.1,0.8076]
[1730308533811,3.72802,2682.4,2682.1,0.8076]
[1730308534191,4.182253,2682.5,2682.1,0.8076]
[1730308534583,3.72802,2682.4,2682.1,0.8076]
[1730308535621,3.72834,2682.2,2681.8,1.20096544]
[1730308535829,3.72822,2682.3,2681.9,3.72866]
[1730308536384,7.45648,2682.3,2681.8,4.92977544]
[1730308536909,7.45644,2682.3,2681.8,4.11647544]
[1730308537114,3.72786,2682.5,2681.9,0.7891]
[1730308537415,4.5436,2682.7,2681.9,0.7891]
[1730308537416,3.72835,2682.2,2681.9,0.7891]
[1730308537718,3.72835,2682.2,2682.0,0.03966833]
[1730308537925,3.72842,2682.1,2682.0,0.03966833]
[1730308538221,7.45674,2682.2,2682.0,0.03966833]
[1730308539499,3.72835,2682.2,2682.0,0.03966833]
[1730308540233,7.45671,2682.2,2682.0,0.03966833]
[1730308540528,3.72842,2682.1,2682.0,0.03966833]
[1730308540723,3.72842,2682.1,2681.8,0.38766544]
[1730308540898,3.72816,2682.3,2681.9,0.03974009]
[1730308541232,3.72833,2682.2,2681.9,0.03974009]
[1730308542032,1.3159537,2682.6,2681.9,0.03974009]
[1730308542329,3.72816,2682.3,2681.9,0.03974009]
[1730308542506,7.45626,2682.4,2681.9,3.76842009]
[1730308543433,3.72812,2682.4,2681.9,3.76842009]
[1730308543732,3.72817,2682.3,2681.9,3.76842009]
[1730308544631,3.72817,2682.3,2681.9,0.03974009]
[1730308544927,3.72856,2682.0,2681.9,0.03974009]
[1730308545325,3.72856,2682.0,2681.5,1.14186028]
[1730308545491,3.72885,2681.8,2681.6,0.03996659]
[1730308545691,3.72858,2682.0,2681.6,0.03996659]
[1730308545936,0.7711,2682.2,2681.6,0.03996659]
[1730308546135,0.7711,2682.2,2681.6,3.76897659]
[1730308546136,3.72853,2682.1,2681.6,3.76897659]
[1730308546702,3.72856,2682.0,2681.6,3.76897659]
[1730308547200,3.72853,2682.1,2681.6,3.76896659]
[1730308547935,3.72831,2682.2,2681.7,0.8307]
[1730308548135,3.72831,2682.2,2681.8,3.76865583]
[1730308548836,3.72831,2682.2,2681.8,0.03983583]
[1730308549229,3.72842,2682.1,2681.7,5.10961]
[1730308549428,3.72842,2682.1,2681.9,0.03977844]
[1730308549742,3.72857,2682.0,2681.7,1.3807]
[1730308549928,3.7288,2681.9,2681.5,1.21856028]
[1730308550110,3.7288,2681.9,2681.5,0.8307]
[1730308550301,3.7288,2681.9,2681.5,1.21866886]
[1730308551249,3.72893,2681.8,2681.5,1.21866886]
[1730308551540,0.8087,2682.1,2681.5,1.21866886]
[1730308551701,3.925,2683.3,2681.9,3.72863]
[1730308551702,0.8087,2682.6,2681.9,3.72863]
[1730308552042,3.72803,2682.4,2682.1,0.8307]
[1730308552232,3.72787,2682.5,2682.1,0.8307]
[1730308553338,3.72802,2682.4,2682.1,0.8307]
[1730308553705,3.72817,2682.3,2681.9,4.54773]
[1730308556656,3.72828,2682.2,2681.9,0.8191]
[1730308556809,3.72856,2682.0,2681.7,0.7673]
[1730308557946,3.72856,2682.0,2681.8,0.03988058]
[1730308558153,3.72869,2681.9,2681.7,0.7673]
[1730308558311,3.72869,2681.9,2681.8,0.03988058]
[1730308558516,3.72842,2682.1,2681.6,3.72901]
[1730308558705,3.72842,2682.1,2681.7,0.03869951]
[1730308559250,3.72862,2682.0,2681.7,0.03869951]
[1730308561313,3.72842,2682.1,2681.7,3.76766951]
[1730308561648,3.7283,2682.2,2681.7,7.49657951]
[1730308561947,3.72826,2682.3,2681.7,3.76760951]
[1730308562136,3.72828,2682.2,2681.7,7.49648951]
[1730308562342,0.8288,2682.6,2681.9,0.7971]
[1730308562645,3.72815,2682.3,2682.0,0.03845705]
[1730308562947,3.72786,2682.5,2682.0,0.03845705]
[1730308563157,4.183736,2682.4,2682.0,3.76695705]
[1730308563510,3.7282,2682.3,2682.0,0.03845705]
[1730308563916,0.455666,2682.4,2682.0,0.03845705]
[1730308564251,3.72774,2682.6,2682.2,3.72826]
[1730308564452,3.72786,2682.5,2682.3,0.781]
[1730308564658,4.47342,2682.5,2682.3,0.81922902]
[1730308564814,0.74556,2682.5,2682.3,4.54728902]
[1730308565018,0.8011,2683.1,2682.3,4.39714318]
[1730308565213,3.72689,2683.2,2682.7,3.72756]
[1730308565652,7.45386,2683.2,2682.8,0.03786398]
[1730308565960,8.294316,2683.2,2682.7,3.72756]
[1730308566259,8.294316,2683.2,2682.8,0.03786398]
[1730308566620,4.567346,2683.2,2682.8,0.03786398]
[1730308566822,3.72707,2683.1,2682.7,3.72756]
[1730308567035,3.72707,2683.1,2682.9,0.03779227]
[1730308567333,3.72707,2683.1,2682.7,3.72756]
[1730308567517,3.72707,2683.1,2683.0,0.03772056]
[1730308567714,3.72707,2683.1,2682.7,3.72756]
[1730308567953,3.72707,2683.1,2683.0,0.03772056]
[1730308568121,4.6366216,2683.1,2683.0,0.03772056]
[1730308568332,3.7272,2683.0,2682.6,3.72772]
[1730308568533,3.72707,2683.1,2682.6,7.45538]
[1730308568858,3.72707,2683.1,2682.6,3.72766]
[1730308569247,3.72689,2683.2,2682.7,3.72756]
[1730308569819,3.72689,2683.2,2682.8,0.7856]
[1730308570227,0.1496,2683.4,2682.9,7.37967012]
[1730308570453,0.1496,2683.4,2683.2,3.72686]
[1730308571558,0.1496,2683.4,2683.3,4.50845]
[1730308571771,0.1496,2683.4,2683.3,0.7817]
[1730308572858,0.1496,2683.4,2683.3,0.81895633]
[1730308573074,0.1496,2683.4,2683.3,4.54570633]
[1730308573257,0.1496,2683.4,2683.3,8.74814595]
[1730308573441,0.1496,2683.4,2683.3,8.67362049]
[1730308575465,0.1496,2683.4,2683.3,5.09570633]
[1730308576031,0.1496,2683.4,2683.3,5.17023237]
[1730308576733,0.1496,2683.4,2683.3,8.74814653]
[1730308576939,0.1496,2683.4,2683.3,8.67362049]
[1730308578659,0.1496,2683.4,2683.3,1.36895633]
[1730308578883,0.1496,2683.4,2683.3,0.03725633]
[1730308579194,3.87621,2683.4,2683.1,0.757]
[1730308579334,3.87621,2683.4,2683.3,0.03603445]
[1730308580154,3.87621,2683.4,2683.1,0.757]
[1730308580359,3.87621,2683.4,2683.3,0.03603445]
[1730308580559,3.87621,2683.4,2683.2,0.03610614]
[1730308580757,3.87621,2683.4,2683.3,0.03603445]
[1730308580961,3.87621,2683.4,2683.1,0.757]
[1730308581274,3.72689,2683.2,2682.9,0.7808]
[1730308581433,3.72704,2683.1,2682.9,0.7808]
[1730308581641,3.72717,2683.0,2682.7,0.795]
[1730308582391,3.72704,2683.1,2682.7,4.52258]
[1730308582671,3.72704,2683.1,2682.7,0.795]
[1730308583257,3.72723,2683.0,2682.7,0.795]
[1730308584539,8.25188,2683.2,2682.7,4.52258]
[1730308584746,4.52489,2683.2,2682.7,4.52258]
[1730308585044,7.45389,2683.2,2682.8,0.373]
[1730308585636,3.72689,2683.2,2682.8,0.373]
[1730308585941,7.45388,2683.2,2682.8,0.373]
[1730308586281,3.72704,2683.1,2682.8,0.373]
[1730308587577,3.7274,2682.9,2682.7,0.795]
[1730308587767,3.72744,2682.8,2682.7,0.795]
[1730308587954,3.72738,2682.9,2682.7,0.795]
[1730308588368,3.72723,2683.0,2682.7,0.795]
[1730308588581,7.4545,2683.0,2682.7,0.795]
[1730308589841,3.72723,2683.0,2682.7,0.795]
[1730308590043,3.72724,2683.0,2682.7,0.795]
[1730308590665,3.72719,2683.0,2682.7,0.795]
[1730308591184,3.72681,2683.3,2682.8,4.27738]
[1730308592154,3.72695,2683.2,2682.8,0.55]
[1730308592372,3.72695,2683.2,2682.8,4.27738]
[1730308594168,3.72677,2683.3,2682.8,4.27736]
[1730308594973,7.45392,2683.2,2682.8,0.55]
[1730308595172,3.72718,2683.0,2682.7,0.795]
[1730308595357,3.72718,2683.0,2682.4,7.11526139]
[1730308595358,3.72766,2682.7,2682.4,1.20204139]
[1730308595565,3.72766,2682.7,2682.4,0.8147]
[1730308596384,3.72726,2683.0,2682.4,0.88925194]
[1730308596690,3.72726,2683.0,2682.6,0.771]
[1730308597063,3.72726,2683.0,2682.6,4.4987]
[1730308597688,3.87631,2683.4,2682.9,3.72728]
[1730308597868,3.87631,2683.4,2683.0,4.49815]
[1730308598787,0.1496,2683.4,2683.1,3.7269]
[1730308599153,3.87627,2683.4,2683.0,4.49815]
[1730308599357,3.72691,2683.2,2683.0,0.771]
[1730308600093,3.72691,2683.2,2683.1,0.373]
[1730308600257,3.72691,2683.2,2683.0,0.771]
[1730308600792,3.72675,2683.3,2683.0,0.771]
[1730308601299,3.72689,2683.2,2683.0,0.771]
[1730308601517,3.72712,2683.1,2682.8,1.1398]
[1730308602813,3.72712,2683.1,2682.9,0.03636431]
[1730308604011,3.72717,2683.0,2682.9,0.03636431]
[1730308604418,3.7275,2682.8,2682.6,0.7668]
[1730308604979,3.7275,2682.8,2682.3,4.11550301]
[1730308604980,3.72793,2682.5,2682.3,1.15421301]
[1730308605227,3.72768,2682.7,2682.3,1.15421301]
[1730308605432,3.7278,2682.6,2682.3,1.15421301]
[1730308606028,3.7279,2682.5,2682.3,0.38741301]
[1730308608189,3.728,2682.4,2682.3,0.38741301]
[1730308609131,3.72789,2682.5,2682.3,0.38741301]
[1730308609424,3.728,2682.4,2682.3,0.38741301]
[1730308610737,3.728,2682.4,2681.9,0.8301]
[1730308610738,3.7285,2682.1,2681.9,0.8301]
[1730308611224,3.7285,2682.1,2682.0,0.037069]
[1730308614129,3.72866,2682.0,2681.8,0.38795272]
[1730308614424,3.72869,2681.9,2681.7,0.778]
[1730308614640,3.72866,2682.0,2681.7,0.778]
[1730308614790,7.45735,2682.0,2681.7,0.778]
[1730308614990,3.72842,2682.1,2681.7,0.778]
[1730308615635,3.72856,2682.0,2681.7,0.778]
[1730308616931,3.72871,2681.9,2681.7,0.778]
[1730308617139,3.72862,2682.0,2681.7,0.778]
[1730308617496,7.45727,2682.0,2681.7,0.778]
[1730308617718,3.72862,2682.0,2681.8,0.03746649]
[1730308617943,3.72862,2682.0,2681.7,0.778]
[1730308618231,3.72862,2682.0,2681.9,0.03739473]
[1730308618409,7.45729,2682.0,2681.9,0.03739473]
[1730308618732,7.45729,2682.0,2681.7,0.778]
[1730308618934,3.72862,2682.0,2681.9,0.03739473]
[1730308619230,3.72862,2682.0,2681.7,0.778]
[1730308619433,3.72862,2682.0,2681.8,0.03746649]
[1730308619593,3.72869,2681.9,2681.8,0.03746649]
[1730308619795,3.72885,2681.8,2681.5,0.8118]
[1730308620938,3.72862,2682.0,2681.5,0.8118]
[1730308621249,3.72871,2681.9,2681.5,4.54099]
[1730308621448,3.72871,2681.9,2681.5,0.8118]
[1730308622035,3.72871,2681.9,2681.5,4.54104]
[1730308623733,3.72871,2681.9,2681.5,0.8118]
[1730308623947,7.45751,2681.9,2681.5,0.8118]
[1730308624452,3.72871,2681.9,2681.5,0.8118]
[1730308624654,3.72871,2681.9,2681.5,4.54104]
[1730308624856,3.7285,2682.1,2681.5,4.54104]
[1730308625023,3.72832,2682.2,2681.6,3.80362687]
[1730308625361,3.72856,2682.0,2681.6,3.72905]
[1730308625709,3.72843,2682.1,2681.6,3.72897]
[1730308626334,3.72829,2682.2,2681.7,3.7289]
[1730308626655,3.72831,2682.2,2681.7,3.7289]
[1730308626951,3.72848,2682.1,2681.8,0.7817]
[1730308627754,3.72847,2682.1,2681.8,0.7817]
[1730308628440,3.72824,2682.3,2681.8,8.2392]
[1730308628636,3.72824,2682.3,2681.9,3.72867]
[1730308628844,3.72806,2682.4,2681.9,3.72867]
[1730308629649,3.72783,2682.6,2682.1,0.8113]
[1730308629814,3.72793,2682.5,2682.1,4.53967]
[1730308630243,3.72783,2682.6,2682.1,8.26801]
[1730308630442,3.7276,2682.7,2682.2,3.72819]
[1730308630647,3.72781,2682.6,2682.1,4.53971]
[1730308630817,3.72789,2682.5,2682.1,4.53971]
[1730308632853,0.7561,2683.1,2682.3,4.39781416]
[1730308633065,3.72723,2683.0,2682.6,3.72769]
[1730308633361,3.72698,2683.2,2682.7,0.93913204]
[1730308633542,3.72704,2683.1,2682.7,4.66669624]
[1730308633727,3.87632,2683.4,2682.7,0.93912624]
[1730308633933,3.72675,2683.3,2682.9,4.52542]
[1730308634143,3.72675,2683.3,2682.9,0.7982]
[1730308634353,3.72675,2683.3,2683.0,0.04270626]
[1730308635023,3.72691,2683.2,2683.0,0.04270626]
[1730308635942,3.72703,2683.1,2683.0,0.04270626]
[1730308636856,3.72752,2682.8,2682.6,0.788]
[1730308637163,3.72728,2683.0,2682.1,0.775]
[1730308637164,3.72789,2682.5,2682.1,0.775]
[1730308637548,3.72789,2682.5,2682.1,4.50341]
[1730308639128,3.72789,2682.5,2682.1,0.775]
[1730308639129,3.72801,2682.4,2682.1,0.775]
[1730308639559,3.72786,2682.5,2682.1,0.775]
[1730308639754,3.72786,2682.5,2682.1,4.50341]
[1730308639978,3.72767,2682.7,2682.1,4.50333]
[1730308639979,3.72773,2682.6,2682.1,4.50333]
[1730308640341,3.72773,2682.6,2682.1,8.23166]
[1730308640535,3.72767,2682.7,2682.2,3.80283935]
[1730308640770,3.72767,2682.7,2682.3,3.72813]
[1730308641670,3.72767,2682.7,2682.2,3.72827]
[1730308642084,3.72767,2682.7,2682.2,7.45648]
[1730308642639,7.45534,2682.7,2682.2,3.72821]
[1730308642841,3.72778,2682.6,2682.1,4.57796929]
[1730308643063,3.72767,2682.7,2682.2,3.72826]
[1730308643263,4.178568,2682.9,2682.3,0.55]
[1730308643474,7.905968,2682.9,2682.4,3.72799]
[1730308643782,3.72753,2682.8,2682.3,5.04863]
[1730308644081,4.178568,2682.9,2682.4,3.72798]
[1730308644376,3.72746,2682.8,2682.4,3.72798]
[1730308644566,4.178568,2682.9,2682.4,7.45591]
[1730308644767,3.72738,2682.9,2682.4,3.72793]
[1730308644976,3.72684,2683.3,2682.6,4.49816]
[1730308645189,3.72696,2683.2,2682.8,3.72738]
[1730308645386,4.69921,2683.4,2682.9,4.4978]
[1730308645387,3.72677,2683.3,2682.9,4.4978]
[1730308645679,3.72677,2683.3,2682.9,0.7705]
[1730308646388,0.1496,2683.4,2682.9,0.7705]
[1730308646596,3.7269,2683.2,2682.9,0.7705]
[1730308646755,3.72706,2683.1,2682.9,0.7705]
[1730308647384,3.72706,2683.1,2682.7,0.7705]
[1730308647385,3.72703,2683.1,2682.7,0.7705]
[1730308647699,3.72703,2683.1,2682.8,0.04265061]
[1730308648087,3.72703,2683.1,2682.7,0.7705]
[1730308648290,3.72703,2683.1,2682.9,0.04248332]
[1730308648612,3.72703,2683.1,2682.8,0.04644324]
[1730308648759,3.72703,2683.1,2683.0,0.04239369]
[1730308648960,3.72703,2683.1,2682.9,0.04248332]
[1730308649180,3.72703,2683.1,2683.0,0.04239369]
[1730308649598,3.72703,2683.1,2682.7,0.7705]
[1730308649760,3.72703,2683.1,2683.0,0.04239369]
[1730308649961,3.72703,2683.1,2682.7,0.7705]
[1730308650160,3.72703,2683.1,2683.0,0.04239369]
[1730308650695,3.72703,2683.1,2682.7,4.49806]
[1730308650896,3.72703,2683.1,2683.0,0.04239369]
[1730308651053,3.72703,2683.1,2682.7,4.49806]
[1730308651398,3.72703,2683.1,2682.8,0.04257297]
[1730308651782,3.72703,2683.1,2682.7,4.49806]
[1730308651985,3.72703,2683.1,2682.9,0.04248332]
[1730308652159,3.72703,2683.1,2682.8,0.04257297]
[1730308652360,3.72703,2683.1,2683.0,0.04239369]
[1730308652560,3.72703,2683.1,2682.7,4.49806]
[1730308652561,3.72703,2683.1,2682.9,0.04248332]
[1730308652761,3.72703,2683.1,2683.0,0.04239369]
[1730308653174,3.72703,2683.1,2682.7,4.49806]
[1730308653696,3.72703,2683.1,2682.8,0.04257297]
[1730308654073,3.72703,2683.1,2682.7,4.49806]
[1730308654378,3.72703,2683.1,2682.8,0.04257297]
[1730308654710,3.72703,2683.1,2682.7,4.49806]
[1730308655014,3.72703,2683.1,2682.9,0.04248332]
[1730308655182,3.72703,2683.1,2682.8,0.04257297]
[1730308655499,3.72703,2683.1,2682.9,0.04248332]
[1730308655705,3.72717,2683.0,2682.9,0.04248332]
[1730308655904,3.72736,2682.9,2682.4,4.50883]
[1730308656384,4.53806,2682.9,2682.5,0.04284989]
[1730308656577,4.53806,2682.9,2682.5,3.77069989]
[1730308656776,3.72736,2682.9,2682.5,3.77069989]
[1730308656968,3.72736,2682.9,2682.5,0.04284989]
[1730308657877,7.45474,2682.9,2682.5,0.04284989]
[1730308658263,3.72736,2682.9,2682.5,0.04284989]
[1730308658517,3.72736,2682.9,2682.5,3.77065989]
[1730308658802,3.72718,2683.0,2682.5,3.77065989]
[1730308659007,3.72739,2682.9,2682.5,0.04284989]
[1730308660872,7.45477,2682.9,2682.5,0.04284989]
[1730308661280,3.72754,2682.8,2682.5,0.04284989]
[1730308662095,3.72751,2682.8,2682.5,0.04284989]
[1730308662796,3.72755,2682.8,2682.5,0.04284989]
[1730308663373,3.72744,2682.8,2682.5,0.04284989]
[1730308664615,3.72772,2682.6,2682.5,0.04284989]
[1730308665281,3.72792,2682.5,2682.0,3.72852]
[1730308665805,3.72792,2682.5,2682.1,3.76840348]
[1730308666173,7.45589,2682.5,2682.1,0.04001348]
[1730308666885,3.72792,2682.5,2682.1,0.04001348]
[1730308667672,3.72807,2682.4,2682.1,0.04001348]
[1730308668071,3.72807,2682.4,2681.9,4.54699]
[1730308668072,3.72807,2682.4,2682.0,0.55]
[1730308668296,3.72822,2682.3,2682.1,0.04003002]
[1730308668501,4.473669,2682.4,2682.0,3.72855]
[1730308668773,3.72807,2682.4,2682.2,0.03994724]
[1730308669081,3.72814,2682.3,2681.9,4.54697]
[1730308669405,0.7564,2682.7,2681.9,0.8183]
[1730308669606,3.72802,2682.4,2682.0,3.72854]
[1730308669978,4.60844662,2682.6,2682.1,0.0745662]
[1730308670197,3.72772,2682.6,2682.2,0.8102]
[1730308670680,3.72772,2682.6,2682.2,4.53842]
[1730308671110,7.45555,2682.6,2682.2,0.8102]
[1730308671408,3.72793,2682.5,2682.2,0.8102]
[1730308671613,7.45612,2682.4,2682.2,0.8102]
[1730308671973,3.72802,2682.4,2682.0,1.3398]
[1730308672210,7.45613,2682.4,2682.0,1.3398]
[1730308672586,3.72802,2682.4,2682.0,1.3398]
[1730308673090,3.72802,2682.4,2682.0,5.06832]
[1730308673982,3.72802,2682.4,2682.0,0.7898]
[1730308674179,3.72825,2682.3,2681.8,0.7915]
[1730308674384,3.72856,2682.0,2681.8,0.7915]
[1730308674693,3.72836,2682.2,2681.8,0.7915]
[1730308674694,3.72844,2682.1,2681.8,0.7915]
[1730308676312,3.72824,2682.3,2681.8,4.52029]
[1730308676529,3.72824,2682.3,2681.8,4.59486439]
[1730308676845,3.72816,2682.3,2681.9,3.72864]
[1730308677142,0.826,2682.6,2681.8,4.52031]
[1730308677311,3.72816,2682.3,2681.8,8.24903]
[1730308677728,3.72816,2682.3,2681.9,0.03744059]
[1730308678331,3.728,2682.4,2681.9,0.03744059]
[1730308678838,3.728,2682.4,2681.9,3.76611059]
[1730308679037,3.72817,2682.3,2681.9,3.76611059]
[1730308679345,3.72817,2682.3,2681.9,0.03744059]
[1730308681141,3.7283,2682.2,2681.9,0.03744059]
[1730308681942,3.72855,2682.1,2681.9,0.03744059]
[1730308682354,3.72841,2682.2,2681.9,0.03744059]
[1730308682642,4.101251,2682.2,2681.9,0.03744059]
[1730308682945,3.72856,2682.0,2681.9,0.03744059]
[1730308683309,3.72844,2682.1,2681.9,0.03744059]
[1730308684330,3.72786,2682.5,2682.1,0.8224]
[1730308684529,3.72778,2682.6,2682.1,0.8224]
[1730308684732,3.72793,2682.5,2682.2,0.0372253]
[1730308685248,3.72767,2682.7,2682.2,0.11178808]
[1730308685413,3.72767,2682.7,2682.4,0.8109]
[1730308685739,3.72745,2682.8,2682.5,0.03984046]
[1730308686121,3.72759,2682.7,2682.5,0.03984046]
[1730308686538,3.72739,2682.9,2682.5,0.03984046]
[1730308686539,3.72747,2682.8,2682.5,0.03984046]
[1730308686906,3.72695,2683.2,2682.6,4.53811]
[1730308687110,3.72692,2683.2,2682.8,0.8293]
[1730308687534,3.72724,2683.0,2682.9,0.04273817]
[1730308691633,4.472669,2683.0,2682.9,0.04273817]
[1730308692030,5.277469,2683.0,2682.9,0.04273817]
[1730308692233,3.72745,2682.8,2682.5,0.826]
[1730308692431,3.7281,2682.4,2681.9,4.55463]
[1730308692772,3.72808,2682.4,2682.0,0.06227398]
[1730308692939,3.72831,2682.2,2682.0,0.06227398]
[1730308693277,3.72842,2682.1,2682.0,0.06227398]
[1730308694067,3.72829,2682.2,2681.7,0.8221]